bitfinex/quotes_ETHUSD_20260102
["timestamp","ask_amount","ask_price","bid_price","bid_amount"]
[1767351127930,5.43283279,3060.9,3060.2,5.62832061]
[1767351132043,8.69984976,3060.9,3060.2,5.62832061]
[1767351132242,5.43283279,3060.9,3060.2,5.62832061]
[1767351133951,5.43283279,3060.8,3060.2,5.62832061]
[1767351135921,5.43283279,3060.7,3060.2,5.62832061]
[1767351137952,8.70008155,3060.7,3060.2,5.62832061]
[1767351138455,8.70008155,3060.7,3060.0,5.62932061]
[1767351138456,5.43283279,3060.6,3060.0,5.62932061]
[1767351141542,5.43283279,3060.4,3060.0,0.001]
[1767351144060,5.43283279,3060.3,3060.0,0.001]
[1767351144783,5.43283279,3060.3,3060.0,5.62932061]
[1767351146461,5.27003923,3060.6,3060.0,5.62932061]
[1767351146644,5.64297716,3060.4,3060.0,0.001]
[1767351149561,5.64297716,3060.3,3060.0,0.001]
[1767351150262,5.64297716,3060.3,3059.5,6.60248015]
[1767351150443,5.64297716,3060.3,3059.5,5.74548015]
[1767351151043,6.53552054,3060.2,3059.5,5.74548015]
[1767351151249,6.29652921,3060.1,3059.5,5.74548015]
[1767351152065,6.29652921,3060.1,3059.2,5.74548015]
[1767351153253,5.64297716,3059.9,3059.2,5.74548015]
[1767351155443,5.64297716,3059.8,3059.2,5.74548015]
[1767351157545,5.64297716,3059.7,3059.2,5.74548015]
[1767351157746,6.53409371,3059.7,3059.2,5.74548015]
[1767351158462,6.53409371,3059.7,3059.1,0.001]
[1767351158659,6.53409371,3059.7,3059.1,5.74648015]
[1767351159566,5.64297716,3059.6,3059.1,5.74648015]
[1767351160477,5.64297716,3059.6,3059.1,0.001]
[1767351160672,5.64297716,3059.6,3058.7,5.74648015]
[1767351160673,5.64297716,3059.4,3058.7,5.74648015]
[1767351161680,8.91169876,3059.3,3058.7,5.74648015]
[1767351161894,3.2687216,3059.3,3058.7,5.74648015]
[1767351162187,5.64297716,3059.2,3058.7,5.74648015]
[1767351162374,6.86100876,3059.2,3058.7,5.74648015]
[1767351167481,10.12984085,3059.2,3058.7,5.74648015]
[1767351167775,6.86100876,3059.2,3058.7,5.74648015]
[1767351167976,5.64297716,3059.2,3058.7,5.74648015]
[1767351170451,5.64297716,3059.2,3058.7,0.001]
[1767351170852,5.64297716,3059.2,3058.7,5.74648015]
[1767351176346,5.04881348,3059.1,3058.7,5.74648015]
[1767351176950,5.04881348,3059.1,3058.7,0.001]
[1767351178950,5.04881348,3059.1,3058.7,5.53458174]
[1767351180576,5.04881348,3059.1,3058.7,0.001]
[1767351180577,5.04881348,3059.0,3058.7,0.001]
[1767351181480,5.04881348,3059.0,3058.3,0.858]
[1767351181680,5.04881348,3059.0,3058.4,0.51648111]
[1767351182296,5.04881348,3059.0,3058.4,6.05006285]
[1767351183284,5.04881348,3058.9,3058.4,6.05006285]
[1767351185058,5.04881348,3058.9,3058.4,5.53358174]
[1767351186275,5.04881348,3058.8,3058.1,5.53358174]
[1767351187164,5.04881348,3058.8,3058.4,0.001]
[1767351187369,5.04881348,3058.8,3058.1,5.53358174]
[1767351188270,5.04881348,3058.7,3058.1,5.53358174]
[1767351188470,6.20753988,3058.7,3058.1,5.53358174]
[1767351189487,5.04881348,3058.7,3058.1,5.53358174]
[1767351189691,5.04881348,3058.7,3058.2,5.53358174]
[1767351190184,5.04881348,3059.0,3058.2,5.53358174]
[1767351192362,5.04881348,3058.9,3058.2,5.53358174]
[1767351196494,5.04881348,3058.9,3058.3,9.26968406]
[1767351196992,3.26917814,3058.9,3058.3,9.26968406]
[1767351197161,5.04881348,3058.8,3058.3,9.26968406]
[1767351202904,5.04881348,3058.8,3058.4,9.26968406]
[1767351205083,5.05081348,3058.8,3058.4,5.53358174]
[1767351207170,5.00708369,3058.7,3058.3,0.001]
[1767351209118,5.00708369,3058.7,3058.3,5.26505752]
[1767351209806,5.00708369,3058.7,3058.3,3.73710232]
[1767351209972,5.00708369,3058.7,3058.4,5.26405752]
[1767351221503,5.00708369,3058.7,3058.3,0.001]
[1767351221895,5.00708369,3058.7,3058.4,0.001]
[1767351222101,5.00908369,3058.7,3058.4,5.26505752]
[1767351222407,5.00908369,3058.7,3058.4,0.001]
[1767351224412,5.00908369,3058.7,3058.3,0.001]
[1767351225500,5.00708369,3058.3,3057.9,0.001]
[1767351226394,5.00708369,3058.3,3057.9,5.26505752]
[1767351227822,0.002,3058.7,3058.3,5.26405752]
[1767351228183,5.00908369,3058.7,3058.3,5.26405752]
[1767351228897,5.00708369,3058.6,3058.1,5.26405752]
[1767351232612,4.81263992,3058.5,3058.1,5.26405752]
[1767351237214,4.81263992,3058.5,3058.0,0.07006532]
[1767351237542,4.81263992,3058.5,3058.0,4.91620231]
[1767351240021,0.002,3058.7,3058.0,4.91620231]
[1767351240022,4.8184277,3058.7,3058.4,0.50464528]
[1767351240320,4.8184277,3058.9,3058.4,0.50264528]
[1767351242355,0.002,3059.2,3058.6,0.50401543]
[1767351242513,4.8184277,3059.4,3058.0,0.001]
[1767351242712,4.8184277,3059.4,3058.3,3.73610232]
[1767351242713,5.62712333,3059.4,3058.3,3.73610232]
[1767351242913,5.62712333,3059.4,3058.5,3.73610232]
[1767351243116,5.62712333,3059.4,3058.5,4.23955603]
[1767351244210,5.62712333,3059.4,3058.5,0.50345371]
[1767351244820,3.2687216,3059.3,3058.5,0.50345371]
[1767351244996,4.8184277,3059.2,3058.3,0.50613521]
[1767351245197,4.8184277,3059.8,3058.7,3.73610232]
[1767351245397,4.8184277,3059.8,3058.4,0.858]
[1767351245398,4.8184277,3059.8,3059.5,4.24223753]
[1767351245632,8.08843951,3060.0,3059.5,0.50613521]
[1767351245810,4.8204277,3060.0,3059.6,4.24351381]
[1767351246003,8.08844306,3060.0,3059.6,0.50741149]
[1767351246203,4.8184277,3059.9,3059.6,0.50741149]
[1767351247236,3.26808511,3059.9,3059.4,4.24477515]
[1767351247423,4.8184277,3059.8,3059.4,4.24477515]
[1767351249199,4.8184277,3059.8,3059.5,0.51115271]
[1767351251723,0.002,3060.0,3059.6,3.73610232]
[1767351251928,4.8204277,3060.0,3059.6,3.73610232]
[1767351252129,4.8204277,3060.0,3059.6,8.58223931]
[1767351252325,6.53509344,3060.4,3059.7,4.84613699]
[1767351252326,4.8184277,3060.4,3059.7,4.84613699]
[1767351252530,4.65458836,3060.2,3059.7,5.70436092]
[1767351253234,4.81942867,3060.5,3059.9,4.84613699]
[1767351253404,4.8184277,3060.4,3059.9,4.84613699]
[1767351254007,4.8184277,3060.3,3059.9,4.84613699]
[1767351254214,4.8184277,3060.3,3059.7,4.84613699]
[1767351254714,5.95387323,3060.3,3059.7,4.84613699]
[1767351256111,3.26776027,3060.2,3059.7,4.84613699]
[1767351256314,4.8184277,3060.1,3059.7,4.84613699]
[1767351256749,4.8184277,3060.1,3059.4,4.84613699]
[1767351258137,6.53552054,3060.2,3058.8,4.84613699]
[1767351258138,4.8184277,3059.9,3058.8,4.84613699]
[1767351258532,4.8184277,3059.9,3059.0,4.84613699]
[1767351258715,4.8184277,3059.9,3059.2,4.84613699]
[1767351258918,4.8184277,3059.9,3059.3,4.87876229]
[1767351259317,4.8184277,3059.9,3059.4,4.84713699]
[1767351260222,4.8184277,3059.8,3059.4,4.84713699]
[1767351260423,4.8184277,3059.8,3058.5,4.84613699]
[1767351260631,4.8184277,3059.8,3058.7,4.84613699]
[1767351260957,4.8184277,3059.8,3058.9,4.84613699]
[1767351261168,0.76909661,3060.1,3059.8,4.82038966]
[1767351261169,4.81842964,3060.1,3059.8,4.82038966]
[1767351261454,4.81842964,3060.1,3059.8,4.81911448]
[1767351261843,4.81842964,3060.1,3059.4,4.85823397]
[1767351262045,4.81842964,3060.1,3059.6,4.82554783]
[1767351262239,4.81842964,3060.1,3059.7,4.85823076]
[1767351263230,4.81842964,3060.1,3059.7,4.82554783]
[1767351264275,4.81842964,3060.1,3059.8,0.03268187]
[1767351264954,0.002,3060.6,3060.0,4.8193053]
[1767351264955,0.00100096,3060.6,3060.0,4.8193053]
[1767351265260,4.8184277,3060.5,3060.0,4.8193053]
[1767351265654,4.8184277,3060.5,3059.7,5.68882725]
[1767351265854,4.8184277,3060.5,3059.7,4.83182725]
[1767351266855,5.18428566,3060.4,3059.7,4.83182725]
[1767351267063,5.18428566,3060.4,3059.7,5.40397848]
[1767351267571,0.002,3060.3,3059.7,5.40397848]
[1767351267762,5.18428566,3060.2,3059.7,5.40397848]
[1767351268442,5.18428566,3060.2,3059.5,0.001]
[1767351268830,3.26786706,3060.1,3059.5,0.001]
[1767351269061,5.18428566,3060.0,3059.5,0.001]
[1767351270270,8.45227759,3060.0,3059.5,0.001]
[1767351270458,5.18428566,3059.9,3059.5,0.001]
[1767351272579,5.18428566,3059.8,3059.5,0.001]
[1767351274352,3.26789193,3060.1,3059.5,4.85271923]
[1767351274353,5.18428566,3060.0,3059.5,4.85271923]
[1767351274769,5.18428566,3060.2,3059.5,4.85271923]
[1767351276470,0.002,3060.1,3059.5,4.85271923]
[1767351276777,0.002,3060.1,3059.5,4.8854043]
[1767351277465,5.18628566,3060.1,3059.5,4.8854043]
[1767351277659,5.18628566,3060.1,3059.5,5.74723847]
[1767351278055,5.18628566,3060.1,3059.5,5.7145534]
[1767351279915,5.18428566,3060.0,3059.5,4.85271923]
[1767351281665,5.18428566,3059.9,3059.5,4.85271923]
[1767351283471,0.002,3060.3,3059.6,4.88440324]
[1767351283674,5.18428566,3060.5,3059.8,4.85171923]
[1767351283877,5.18428566,3060.4,3059.8,4.85171923]
[1767351284186,0.002,3060.1,3059.8,4.85171923]
[1767351284387,5.18628566,3060.1,3059.8,4.85171923]
[1767351284767,5.18628566,3060.1,3059.6,4.85171923]
[1767351286158,3.26744815,3060.5,3059.7,4.85171923]
[1767351286159,8.45177006,3060.5,3059.7,4.85171923]
[1767351286670,5.18428566,3060.4,3059.7,4.85171923]
[1767351288576,8.45183612,3060.4,3059.7,4.85171923]
[1767351289588,3.26755046,3060.4,3059.7,4.85171923]
[1767351289900,5.18428566,3060.3,3059.7,4.85171923]
[1767351290081,5.18428566,3060.3,3059.7,5.39408834]
[1767351290790,5.18428566,3060.2,3059.7,5.39408834]
[1767351292789,5.18428566,3059.7,3058.5,4.85171923]
[1767351292962,5.18428566,3059.7,3058.7,4.85171923]
[1767351293164,5.18428566,3059.7,3059.0,4.85171923]
[1767351297570,5.18428566,3059.7,3059.0,4.85271923]
[1767351298491,5.18428566,3059.7,3059.2,4.96487834]
[1767351298692,5.18428566,3059.7,3059.3,4.99756555]
[1767351299397,5.09385819,3059.8,3059.3,4.99756555]
[1767351300182,8.36206986,3059.8,3059.3,4.99756555]
[1767351300382,5.09385819,3059.8,3059.3,4.99756555]
[1767351300570,6.34265392,3059.8,3059.3,4.99756555]
[1767351300972,0.858,3059.9,3059.3,4.99756555]
[1767351301373,0.858,3059.9,3059.3,3.76562459]
[1767351301574,0.858,3059.9,3059.4,4.96487834]
[1767351302100,0.858,3059.9,3059.6,4.96487834]
[1767351305106,8.3616537,3060.2,3059.5,4.96487834]
[1767351305302,8.3636537,3060.2,3059.5,4.96487834]
[1767351305606,5.09385819,3060.1,3059.5,5.54792805]
[1767351309005,5.09385819,3060.1,3059.5,0.58304971]
[1767351309206,5.09385819,3060.0,3059.4,0.001]
[1767351309381,5.09385819,3060.0,3059.4,4.96587834]
[1767351311209,5.09385819,3059.8,3059.4,4.96587834]
[1767351313308,8.36367645,3060.2,3059.4,4.96587834]
[1767351313510,5.09385819,3060.1,3059.6,4.96487834]
[1767351315412,5.09385819,3060.0,3059.6,4.96487834]
[1767351317913,5.09385819,3059.9,3059.6,4.96487834]
[1767351318218,5.09385819,3059.9,3059.4,0.001]
[1767351318219,5.09385819,3059.9,3059.4,4.96587834]
[1767351318593,5.09385819,3059.9,3059.4,0.001]
[1767351319215,5.09385819,3059.9,3059.4,4.96587834]
[1767351319584,0.002,3060.2,3059.4,5.46246617]
[1767351319824,5.09585819,3060.2,3059.4,5.46246617]
[1767351320120,5.09385819,3060.1,3059.4,5.46246617]
[1767351321317,5.09385819,3060.1,3059.6,4.96487834]
[1767351321518,5.09585819,3060.1,3059.6,4.96487834]
[1767351322201,5.09385819,3060.0,3059.6,4.96487834]
[1767351326024,8.36184249,3060.0,3059.6,4.96487834]
[1767351326625,5.3506726,3059.9,3059.6,4.96487834]
[1767351334734,3.26809179,3059.9,3059.5,0.001]
[1767351334907,5.3506726,3059.8,3059.5,0.001]
[1767351336131,5.3506726,3059.8,3059.5,5.14292004]
[1767351336637,5.3506726,3060.0,3059.5,5.14292004]
[1767351337347,5.35167356,3060.6,3060.0,5.14869957]
[1767351337634,3.26834257,3060.6,3060.0,5.14869957]
[1767351337939,5.3506726,3060.5,3060.0,5.14869957]
[1767351339344,8.61812476,3060.5,3060.0,5.14869957]
[1767351340245,5.3506726,3060.5,3060.0,5.14869957]
[1767351340441,5.3506726,3060.5,3060.0,5.66356953]
[1767351340616,8.61813625,3060.5,3060.0,5.66356953]
[1767351340943,5.3506726,3060.5,3060.0,5.66356953]
[1767351344125,5.3526726,3060.5,3060.0,5.66356953]
[1767351350061,0.002,3060.5,3060.0,5.66356953]
[1767351350242,0.002,3060.5,3060.2,5.17871679]
[1767351351827,5.3526726,3060.5,3060.2,5.17871679]
[1767351353031,5.3526726,3060.5,3059.9,5.18941246]
[1767351359664,5.3526726,3060.5,3059.9,5.19041246]
[1767351360665,5.3526726,3060.5,3059.9,3.73433112]
[1767351360967,5.3526726,3060.5,3060.0,5.80352854]
[1767351363976,3.26946419,3060.5,3060.0,5.80352854]
[1767351364144,5.18068151,3060.4,3059.9,0.001]
[1767351364478,5.18068151,3060.4,3059.9,5.01858352]
[1767351366869,0.002,3060.5,3059.9,5.01858352]
[1767351367871,5.18268151,3060.5,3059.9,5.01858352]
[1767351368770,5.18268151,3060.5,3059.9,5.87558352]
[1767351369270,5.18268151,3060.5,3059.9,6.83647498]
[1767351369472,5.18268151,3060.5,3060.0,5.01758352]
[1767351375478,0.002,3060.5,3060.0,5.01758352]
[1767351376352,5.18268151,3060.5,3060.0,5.01758352]
[1767351380578,5.18268151,3060.5,3059.9,0.001]
[1767351380779,4.11477029,3060.5,3059.8,0.857]
[1767351381080,5.18068151,3060.4,3059.8,0.857]
[1767351381658,5.18068151,3060.4,3059.8,5.87458352]
[1767351384184,5.18068151,3060.4,3059.8,5.87558352]
[1767351384387,5.18068151,3060.3,3059.8,5.87558352]
[1767351385458,5.18068151,3060.3,3059.8,6.46314187]
[1767351386283,5.45536845,3060.2,3059.8,0.001]
[1767351390991,5.45636748,3060.1,3059.8,0.001]
[1767351392788,5.45636748,3060.1,3059.5,0.001]
[1767351393972,5.45636748,3060.1,3059.5,5.23357483]
[1767351400501,5.45636748,3060.0,3059.5,5.23357483]
[1767351400796,5.45636748,3060.0,3059.5,0.001]
[1767351401097,6.65556922,3060.0,3059.5,0.001]
[1767351401900,5.45636748,3059.8,3059.0,0.001]
[1767351402196,5.45636748,3059.8,3059.1,5.20261413]
[1767351408204,3.73195355,3059.9,3059.0,0.858]
[1767351408205,8.85832103,3059.6,3059.0,0.001]
[1767351408404,3.73195355,3059.5,3058.8,0.13960787]
[1767351408582,9.18832103,3059.5,3058.9,0.13960787]
[1767351409106,9.18832103,3059.5,3059.0,0.14590033]
[1767351409802,9.18832103,3059.5,3058.7,0.00539816]
[1767351410105,4.46716593,3059.4,3059.0,0.17039816]
[1767351410506,4.46716593,3059.4,3058.9,0.82420155]
[1767351413712,4.46716593,3059.4,3058.8,0.41328215]
[1767351413892,4.46716593,3059.4,3058.9,0.85036963]
[1767351414413,4.13780469,3059.4,3058.9,0.85036963]
[1767351414594,3.31280469,3059.4,3058.9,0.85036963]
[1767351416113,3.31280469,3059.4,3058.9,0.85136963]
[1767351416410,3.31480469,3059.4,3058.9,0.85136963]
[1767351417414,5.15559013,3059.2,3058.9,0.001]
[1767351417593,5.15559013,3059.2,3058.6,2.15286868]
[1767351417913,5.15559013,3059.2,3058.7,2.36809504]
[1767351421422,5.15559013,3059.2,3058.8,0.03269255]
[1767351421590,5.15559013,3059.2,3058.8,2.20087627]
[1767351424420,5.27351776,3059.4,3058.8,2.20087627]
[1767351424603,5.27351776,3059.4,3058.8,2.20187627]
[1767351424791,5.27351776,3059.4,3058.8,2.44370258]
[1767351425687,5.27351776,3059.4,3058.8,2.41101003]
[1767351432729,0.002,3059.4,3058.8,2.41101003]
[1767351432918,0.002,3059.4,3059.0,2.23111863]
[1767351433821,5.27151776,3059.3,3059.0,2.23111863]
[1767351436227,0.002,3059.4,3059.0,2.47851312]
[1767351436420,6.12951776,3059.6,3059.1,2.28122809]
[1767351436724,5.27151776,3059.6,3059.1,2.28122809]
[1767351437727,5.27151776,3059.6,3059.1,2.24854731]
[1767351438807,5.27151776,3059.9,3059.1,2.28122381]
[1767351439001,5.27151776,3059.9,3059.3,2.2725217]
[1767351440329,5.27151776,3059.9,3059.3,2.30519606]
[1767351440714,5.27151776,3059.9,3059.3,2.2725217]
[1767351441125,0.002,3059.6,3059.3,2.2725217]
[1767351441429,0.002,3059.6,3059.4,2.53875851]
[1767351441831,5.27151776,3059.8,3059.4,2.53875851]
[1767351448438,5.27151776,3059.8,3059.2,0.28553619]
[1767351448642,5.27151776,3059.8,3059.2,0.25286183]
[1767351449239,5.27151776,3059.8,3059.2,2.33709167]
[1767351449541,5.27351776,3059.8,3059.2,2.33709167]
[1767351450652,5.06135664,3059.7,3059.2,2.33709167]
[1767351452248,3.73351474,3059.6,3059.2,2.33709167]
[1767351452420,5.06135664,3059.3,3058.9,2.34379803]
[1767351456123,3.73351474,3059.2,3058.8,0.001]
[1767351456330,5.06135664,3059.1,3058.8,0.001]
[1767351456528,8.79487138,3059.1,3058.8,0.001]
[1767351456741,5.06135664,3059.0,3058.8,0.001]
[1767351457522,5.06135664,3059.0,3058.9,0.001]
[1767351461163,5.06135664,3059.0,3058.8,0.001]
[1767351462354,3.73351474,3059.1,3058.5,0.001]
[1767351462355,5.06135664,3058.8,3058.5,0.001]
[1767351462556,8.79487138,3058.7,3058.5,0.001]
[1767351463436,5.06135664,3058.6,3058.2,0.001]
[1767351464045,5.06135664,3058.6,3058.2,2.39884587]
[1767351467061,8.79487138,3058.5,3058.2,0.001]
[1767351467646,3.73351474,3058.3,3058.2,0.001]
[1767351468547,8.79487138,3058.3,3058.1,0.001]
[1767351469458,5.06135664,3058.3,3058.1,0.001]
[1767351469644,5.06135664,3058.5,3058.1,2.41888602]
[1767351477475,5.21584372,3058.9,3058.1,2.41888602]
[1767351477775,5.21584372,3058.8,3058.1,2.41888602]
[1767351477976,5.21584372,3058.7,3058.1,2.41888602]
[1767351480359,5.21584372,3058.7,3058.1,2.45157643]
[1767351480673,5.21584372,3058.7,3058.1,2.41888602]
[1767351484279,8.94935846,3058.6,3058.1,0.001]
[1767351484485,6.43771809,3058.5,3058.0,0.001]
[1767351486360,6.43771809,3058.5,3057.9,2.47300263]
[1767351486361,5.21584372,3058.3,3057.9,0.001]
[1767351486564,5.21584372,3058.3,3057.8,0.001]
[1767351486867,7.76106904,3058.5,3057.6,0.001]
[1767351486868,5.21584372,3058.1,3057.6,0.001]
[1767351487485,4.62845059,3058.2,3057.3,2.43174244]
[1767351487486,3.73351474,3058.0,3057.3,2.43174244]
[1767351487681,5.21584372,3057.9,3057.1,2.46545209]
[1767351488688,5.21584372,3057.9,3057.1,2.43274244]
[1767351489087,3.27022198,3057.9,3057.1,2.43274244]
[1767351489261,3.73351474,3058.0,3057.1,2.43274244]
[1767351489262,5.91621739,3057.8,3057.1,2.43274244]
[1767351490989,5.21584372,3057.7,3057.1,2.43274244]
[1767351491163,5.21584372,3057.7,3056.9,2.44596464]
[1767351493290,5.21584372,3057.5,3056.9,2.44596464]
[1767351493472,5.21584372,3057.5,3057.0,0.001]
[1767351493663,5.21584372,3057.5,3057.0,2.45189239]
[1767351494203,6.06447682,3057.5,3057.0,0.001]
[1767351494406,6.06447682,3057.5,3057.0,2.45478392]
[1767351494903,6.06447682,3057.5,3057.0,0.001]
[1767351495305,6.06447682,3057.5,3057.0,2.4577524]
[1767351496276,5.21584372,3057.5,3057.0,2.4577524]
[1767351496707,5.21584372,3057.5,3057.1,2.45960678]
[1767351498084,5.21584372,3057.5,3057.0,0.001]
[1767351498390,5.21584372,3057.4,3057.0,0.001]
[1767351498988,5.21584372,3057.4,3057.0,2.44730115]
[1767351500021,6.0644868,3057.4,3057.0,0.001]
[1767351504707,5.21584372,3057.3,3056.9,0.001]
[1767351504921,5.21584372,3057.3,3056.8,0.001]
[1767351505400,5.21584372,3057.2,3056.8,0.001]
[1767351506026,5.67295823,3057.1,3056.2,2.3967265]
[1767351506337,6.46233955,3057.1,3056.2,2.3967265]
[1767351507498,9.73345252,3057.1,3056.3,2.42535588]
[1767351507702,5.67295823,3057.0,3056.3,2.42535588]
[1767351508784,5.67295823,3057.0,3056.8,0.001]
[1767351508986,6.64630348,3056.9,3056.8,0.001]
[1767351509191,6.53095823,3057.1,3056.8,0.001]
[1767351512319,5.67295823,3057.0,3055.9,0.03272143]
[1767351512536,5.67295823,3057.0,3056.0,2.37995472]
[1767351513919,5.67295823,3056.9,3056.0,2.37995472]
[1767351514209,5.67295823,3056.9,3056.2,2.37201708]
[1767351514588,5.67295823,3056.8,3056.2,2.37201708]
[1767351517232,5.67295823,3057.0,3056.1,2.36058993]
[1767351517632,5.67295823,3056.9,3056.1,2.36058993]
[1767351517793,4.58870934,3057.4,3056.0,0.03372035]
[1767351517794,5.67295823,3057.3,3056.3,2.35060442]
[1767351518112,5.67295823,3057.2,3056.5,2.35060442]
[1767351518427,5.67295823,3057.2,3056.7,2.35060442]
[1767351518594,5.67295823,3056.9,3056.0,0.001]
[1767351518795,5.67295823,3056.9,3056.0,2.34805264]
[1767351519025,6.61426068,3056.9,3056.0,2.34805264]
[1767351520029,5.67295823,3056.8,3056.0,2.34805264]
[1767351522209,5.67295823,3056.6,3056.0,2.34805264]
[1767351522613,5.67295823,3056.6,3056.0,0.001]
[1767351522918,5.67295823,3056.6,3056.0,2.32788578]
[1767351523109,5.67295823,3056.4,3056.0,2.32788578]
[1767351523715,5.67295823,3056.4,3056.0,0.001]
[1767351524217,5.67295823,3056.3,3056.0,0.001]
[1767351525031,5.67295823,3056.3,3055.8,0.001]
[1767351526329,5.67295823,3056.3,3055.7,0.001]
[1767351526330,5.67295823,3056.2,3055.7,0.001]
[1767351526830,6.1748325,3056.2,3055.7,0.001]
[1767351528416,5.67295823,3056.1,3055.7,0.001]
[1767351529331,5.67295823,3056.1,3055.7,2.31684679]
[1767351537342,5.2702054,3056.4,3055.7,2.31684679]
[1767351539713,5.2702054,3056.3,3055.7,2.31684679]
[1767351540138,0.002,3056.4,3055.7,2.54873147]
[1767351540447,9.40081437,3056.6,3055.9,2.26084922]
[1767351540448,5.2702054,3056.6,3055.9,2.26084922]
[1767351541728,5.2702054,3056.5,3055.7,0.001]
[1767351541926,5.2702054,3056.5,3055.8,2.24945477]
[1767351542121,5.2702054,3056.5,3055.8,2.47460025]
[1767351544933,3.27152161,3056.7,3055.8,2.47460025]
[1767351545144,5.2702054,3056.7,3056.0,2.23607761]
[1767351545511,8.54171779,3056.7,3056.0,2.23607761]
[1767351546015,8.54171779,3056.7,3056.2,2.23373614]
[1767351546410,0.002,3056.8,3056.2,2.23373614]
[1767351546607,5.2702054,3056.7,3056.2,2.45710975]
[1767351549237,0.002,3056.8,3056.2,2.45710975]
[1767351550317,5.2722054,3056.8,3056.2,2.45710975]
[1767351553647,5.2702054,3056.7,3056.2,2.45710975]
[1767351554645,5.2702054,3056.7,3056.2,2.23373614]
[1767351555753,5.2702054,3056.6,3056.2,2.23373614]
[1767351560049,5.19641381,3056.6,3056.2,2.23373614]
[1767351560250,5.2702054,3056.6,3056.1,0.001]
[1767351560548,0.002,3056.8,3056.1,2.19077758]
[1767351560549,5.79722594,3056.5,3056.1,2.19077758]
[1767351561725,5.2702054,3056.5,3056.1,2.19077758]
[1767351564021,5.2702054,3056.7,3056.1,2.19077758]
[1767351565829,0.002,3056.8,3056.5,3.74114422]
[1767351566031,5.48934927,3057.4,3056.8,2.15354419]
[1767351566245,5.48934927,3057.3,3056.8,2.15354419]
[1767351568960,5.49134927,3057.6,3056.8,2.15354419]
[1767351569163,5.49134927,3057.6,3057.0,2.13548572]
[1767351581262,3.27256282,3057.6,3057.0,2.13548572]
[1767351581576,5.48934927,3057.5,3057.0,2.13548572]
[1767351583343,5.48934927,3057.5,3057.0,2.34913429]
[1767351588449,5.48934927,3057.5,3057.0,2.13548572]
[1767351595473,5.48934927,3057.5,3056.8,0.001]
[1767351595667,5.48934927,3057.5,3056.8,2.03943918]
[1767351601389,5.1077591,3057.7,3057.0,2.01224375]
[1767351601688,5.1057591,3058.0,3057.6,2.01024375]
[1767351602190,5.1057591,3058.0,3057.2,2.00780377]
[1767351604258,0.002,3058.1,3057.2,2.00780377]
[1767351604259,5.1057591,3057.8,3057.2,2.00780377]
[1767351612604,5.1057591,3057.3,3056.8,0.001]
[1767351612906,5.1057591,3057.0,3056.8,0.001]
[1767351613614,5.1057591,3057.0,3056.6,1.97135202]
[1767351613911,5.1057591,3056.8,3056.2,1.97235202]
[1767351614096,5.1057591,3056.8,3056.2,2.25558722]
[1767351616295,5.1057591,3056.8,3056.1,0.859]
[1767351616296,5.1057591,3056.8,3056.1,0.001]
[1767351616505,5.1057591,3056.8,3056.2,1.96653456]
[1767351618313,5.1057591,3057.2,3056.2,1.96653456]
[1767351618990,5.1057591,3057.0,3056.2,1.96653456]
[1767351624418,5.1057591,3056.9,3056.2,1.96653456]
[1767351626284,5.00193256,3056.8,3056.1,0.001]
[1767351626704,5.00193256,3056.8,3056.1,1.93072429]
[1767351628508,5.00193256,3056.8,3056.1,0.001]
[1767351628728,5.00193256,3056.4,3055.8,1.92531221]
[1767351629009,5.00193256,3056.1,3055.6,5.25332487]
[1767351630324,5.00193256,3056.4,3055.6,5.25332487]
[1767351631717,5.00193256,3056.3,3055.6,5.25332487]
[1767351632615,5.00193256,3056.3,3055.5,0.001]
[1767351632616,5.00193256,3056.1,3055.5,0.001]
[1767351632916,5.00193256,3055.9,3055.5,0.001]
[1767351633117,0.50019326,3056.2,3055.0,5.25332487]
[1767351633118,5.00193256,3055.6,3055.0,5.25332487]
[1767351633791,5.00193256,3055.6,3055.5,0.001]
[1767351633994,5.00193256,3055.6,3055.0,5.25332487]
[1767351634200,5.00193256,3055.5,3055.0,5.25332487]
[1767351635820,5.00193256,3055.5,3054.9,0.001]
[1767351636506,5.00193256,3055.4,3054.9,0.001]
[1767351638396,5.00193256,3055.3,3054.9,0.001]
[1767351639132,5.00193256,3055.3,3054.4,0.858]
[1767351639133,5.00193256,3055.0,3054.4,5.25332487]
[1767351639997,5.00193256,3055.0,3054.3,0.001]
[1767351640208,3.74108307,3054.8,3054.3,0.001]
[1767351640425,5.00193256,3054.7,3054.3,0.001]
[1767351640630,5.00193256,3054.7,3054.0,5.25332487]
[1767351640993,5.00193256,3054.4,3054.0,5.25332487]
[1767351641231,5.00193256,3054.4,3054.3,0.001]
[1767351641433,5.00193256,3054.4,3053.9,0.40596018]
[1767351642114,5.00193256,3054.4,3053.9,5.65928505]
[1767351642631,5.00193256,3054.3,3053.9,5.65928505]
[1767351643100,5.00193256,3054.3,3053.9,0.40596018]
[1767351643303,5.50212582,3054.3,3053.9,0.40596018]
[1767351643505,5.00193256,3053.9,3053.1,0.001]
[1767351643727,5.00193256,3053.9,3053.2,5.25332487]
[1767351643901,5.00193256,3054.6,3053.4,5.25332487]
[1767351644228,5.00193256,3054.6,3053.3,5.28607631]
[1767351644524,5.00193256,3054.6,3053.5,5.25332487]
[1767351644727,5.00193256,3054.5,3053.5,6.11232487]
[1767351645309,5.00193256,3054.5,3053.5,5.25332487]
[1767351646710,5.00193256,3054.4,3053.5,5.25332487]
[1767351648005,5.00193256,3054.2,3053.5,5.25332487]
[1767351649017,0.32738694,3054.4,3053.5,5.25332487]
[1767351649018,5.3293195,3054.4,3053.5,5.25332487]
[1767351649213,5.00193256,3054.4,3053.5,5.25332487]
[1767351651833,3.2739666,3054.4,3053.5,5.25332487]
[1767351652012,5.00193256,3054.3,3053.5,5.25332487]
[1767351654531,5.00193256,3054.5,3053.5,5.25332487]
[1767351656044,3.27417981,3054.2,3053.5,5.25332487]
[1767351656220,5.3898027,3054.1,3053.5,5.25332487]
[1767351656420,5.3898027,3054.1,3053.3,0.001]
[1767351656631,6.25620095,3054.1,3053.4,5.13617334]
[1767351657355,3.74108307,3054.0,3053.4,5.13617334]
[1767351657540,5.3898027,3053.9,3053.4,5.13617334]
[1767351657912,5.3898027,3053.9,3053.5,0.001]
[1767351659354,5.3898027,3053.9,3053.3,0.001]
[1767351659355,5.3898027,3053.8,3053.3,0.001]
[1767351660213,5.3898027,3053.8,3053.1,0.001]
[1767351660409,5.3898027,3053.8,3053.1,5.13717334]
[1767351660615,5.3898027,3053.7,3053.1,5.13717334]
[1767351660814,6.35155445,3053.7,3053.1,5.13717334]
[1767351661245,6.34286294,3053.9,3053.1,5.13717334]
[1767351661923,5.3898027,3053.8,3053.1,5.13717334]
[1767351662546,5.3898027,3053.7,3053.1,5.13717334]